bitfinex-derivatives/quotes_SOLF0:USTF0_20250428
["timestamp","ask_amount","ask_price","bid_price","bid_amount"]
[1745867407336,21.40366651,147.32,147.29,6.7875]
[1745867407539,14.61746651,147.32,147.25,4.0027]
[1745867407735,14.61746651,147.3,147.25,2.0676]
[1745867407948,14.61746651,147.28,147.21,35.1592]
[1745867408742,14.61746651,147.28,147.25,6.7891]
[1745867408940,14.61746651,147.28,147.21,35.1592]
[1745867409131,14.61746651,147.3,147.21,35.1592]
[1745867409436,6.7876,147.29,147.26,6.7887]
[1745867410139,6.7876,147.29,147.25,6.7892]
[1745867410536,23.40370993,147.31,147.27,6.7883]
[1745867410841,33.06,147.33,147.22,23.40370993]
[1745867411035,39.8459,147.33,147.3,6.7871]
[1745867411339,39.8459,147.33,147.22,23.40370993]
[1745867411836,39.8459,147.33,147.29,6.7873]
[1745867412842,39.8459,147.33,147.3,6.7871]
[1745867413542,33.06,147.33,147.3,6.7871]
[1745867413738,23.40370993,147.35,147.22,36.98460993]
[1745867413938,56.46370993,147.35,147.23,1.20947196]
[1745867414141,63.24880993,147.35,147.23,1.20947196]
[1745867414344,56.46370993,147.35,147.23,1.20947196]
[1745867414643,6.7861,147.33,147.22,36.98460993]
[1745867415441,6.7861,147.33,147.29,6.7873]
[1745867416946,6.7861,147.33,147.3,6.7871]
[1745867417745,6.7861,147.33,147.29,6.7873]
[1745867418044,6.7861,147.33,147.23,23.40370993]
[1745867418239,23.40370993,147.35,147.31,6.7864]
[1745867418446,23.40370993,147.35,147.26,33.06]
[1745867418743,30.18880993,147.35,147.26,33.06]
[1745867419148,30.18880993,147.35,147.31,6.7863]
[1745867419346,30.18880993,147.35,147.26,33.06]
[1745867420348,30.18880993,147.35,147.31,6.7864]
[1745867420947,23.40370993,147.35,147.26,33.06]
[1745867421149,23.40370993,147.32,147.22,393.08]
[1745867421348,2.1048,147.31,147.22,393.08]
[1745867421552,35.1848,147.31,147.26,6.7886]
[1745867421951,35.1848,147.31,147.22,393.08]
[1745867422547,35.1848,147.31,147.25,6.7891]
[1745867422752,35.1848,147.31,147.22,393.08]
[1745867423050,6.7879,147.29,147.22,393.08]
[1745867423245,6.7879,147.29,147.22,33.08]
[1745867423446,6.7873,147.3,147.26,6.7889]
[1745867423751,2.1048,147.31,147.22,33.08]
[1745867424051,6.7894,147.26,147.22,39.8704]
[1745867424649,6.7894,147.26,147.23,6.7902]
[1745867425052,6.7887,147.27,147.23,6.7902]
[1745867427356,6.7891,147.26,147.22,33.08]
[1745867427658,6.7891,147.26,147.18,521.28]
[1745867427854,23.40370993,147.26,147.18,33.08]
[1745867428054,35.094,147.25,147.18,33.08]
[1745867428553,6.7907,147.23,147.19,6.7919]
[1745867429257,6.7901,147.24,147.2,6.7916]
[1745867429758,35.094,147.25,147.14,56.48370993]
[1745867430155,6.7912,147.22,147.18,6.7926]
[1745867430757,35.094,147.25,147.14,56.48370993]
[1745867431263,35.094,147.25,147.19,6.7918]
[1745867431462,35.094,147.25,147.14,56.48370993]
[1745867431661,23.40370993,147.24,147.14,56.48370993]
[1745867431861,23.40370993,147.24,147.14,33.08]
[1745867432064,4.0888,147.23,147.14,33.08]
[1745867432556,4.0888,147.23,147.14,56.48370993]
[1745867432758,2.014,147.25,147.14,56.48370993]
[1745867433159,8.8037,147.25,147.14,56.48370993]
[1745867433864,8.8037,147.25,147.21,6.7909]
[1745867434064,6.7899,147.24,147.14,56.48370993]
[1745867434564,6.7899,147.24,147.2,6.7914]
[1745867435363,2.014,147.25,147.21,6.7913]
[1745867435364,8.8036,147.25,147.21,6.7913]
[1745867435759,8.8036,147.25,147.14,56.48370993]
[1745867435760,2.014,147.25,147.14,56.48370993]
[1745867436063,6.7899,147.24,147.14,56.48370993]
[1745867436863,2.014,147.25,147.14,56.48370993]
[1745867437964,8.8035,147.25,147.21,6.791]
[1745867438464,2.014,147.25,147.14,56.48370993]
[1745867439165,8.8037,147.25,147.21,6.791]
[1745867439866,6.7905,147.23,147.14,23.40370993]
[1745867440067,6.7905,147.23,147.15,32.36]
[1745867440266,6.7905,147.23,147.14,55.76370993]
[1745867441267,6.7905,147.23,147.2,6.7917]
[1745867444064,6.791,147.22,147.18,6.7923]
[1745867444466,6.791,147.22,147.19,6.792]
[1745867444667,6.7906,147.23,147.15,32.36]
[1745867445167,6.7906,147.23,147.19,6.7918]
[1745867445467,2.014,147.25,147.15,32.36]
[1745867445967,2.014,147.25,147.17,6.793]
[1745867446566,6.7918,147.2,147.17,6.793]
[1745867447263,6.7915,147.21,147.18,6.7926]
[1745867447761,6.7915,147.21,147.17,6.7929]
[1745867448570,55.76370993,147.23,147.16,6.7934]
[1745867448775,55.76370993,147.23,147.13,32.36]
[1745867449265,6.7917,147.2,147.13,32.36]
[1745867449664,6.7923,147.19,147.16,6.7935]
[1745867449869,55.76370993,147.23,147.13,32.36]
[1745867450266,55.76370993,147.23,147.17,6.7928]
[1745867451569,55.76370993,147.23,147.16,6.7933]
[1745867452169,6.7925,147.19,147.16,6.7933]
[1745867452373,55.76370993,147.23,147.15,6.7939]
[1745867452670,6.7926,147.19,147.15,6.7939]
[1745867453071,55.76370993,147.23,147.15,6.7939]
[1745867453273,1.9598,147.22,147.15,6.7939]
[1745867453471,6.7929,147.18,147.15,6.7939]
[1745867454773,23.40370993,147.2,147.14,6.7944]
[1745867455175,6.7929,147.18,147.14,6.7944]
[1745867455370,6.7929,147.18,147.15,6.7939]
[1745867455571,32.36,147.19,147.11,38.4224]
[1745867455771,6.7933,147.17,147.11,38.4224]
[1745867455973,6.7933,147.17,147.14,6.7943]
[1745867456176,32.36,147.19,147.11,38.4224]
[1745867457474,6.7933,147.17,147.13,6.7946]
[1745867457676,14.64977198,147.18,147.11,38.4224]
[1745867457875,14.64977198,147.18,147.11,32.36]
[1745867458369,14.64977198,147.18,147.13,6.7947]
[1745867458678,6.7934,147.17,147.14,6.7945]
[1745867458978,6.7934,147.17,147.11,32.36]
[1745867459775,6.7936,147.16,147.13,6.7947]
[1745867459977,14.64977198,147.18,147.13,6.7947]
[1745867460279,6.7933,147.17,147.13,6.7947]
[1745867460677,14.64977198,147.18,147.13,6.7947]
[1745867460878,14.64977198,147.18,147.11,32.36]
[1745867461279,6.7939,147.16,147.12,6.7953]
[1745867461480,14.64977198,147.18,147.12,6.7953]
[1745867461777,14.64977198,147.18,147.11,32.36]
[1745867462075,14.64977198,147.18,147.12,6.7951]
[1745867462378,14.64977198,147.18,147.11,32.36]
[1745867462578,6.7938,147.16,147.11,32.36]
[1745867463374,6.7941,147.15,147.11,32.36]
[1745867463572,14.64977198,147.16,147.1,6.7961]
[1745867463774,1.9366,147.18,147.08,6.019]
[1745867463775,14.64977198,147.14,147.08,6.019]
[1745867463979,14.64977198,147.14,147.07,32.34]
[1745867464181,14.64977198,147.12,147.07,32.34]
[1745867464573,14.64977198,147.12,147.07,6.7974]
[1745867464874,6.7961,147.11,147.04,5.9554]
[1745867465075,6.7961,147.11,147.07,6.7974]
[1745867465486,6.7961,147.11,147.04,5.9554]
[1745867465679,1.9366,147.18,147.07,23.45931047]
[1745867465877,1.9366,147.18,147.08,32.34]
[1745867466076,6.7944,147.15,147.08,32.34]
[1745867466277,25.39591047,147.18,147.1,6.7963]
[1745867466476,25.39591047,147.18,147.08,32.34]
[1745867466977,25.39591047,147.18,147.12,6.7951]
[1745867467375,25.39591047,147.18,147.08,32.34]
[1745867468281,6.7937,147.16,147.08,32.34]
[1745867468882,6.7933,147.17,147.13,6.7947]
[1745867469580,32.18881047,147.18,147.08,32.34]
[1745867469781,8.7295,147.18,147.08,32.34]
[1745867470083,528.0725,147.19,147.08,32.34]
[1745867471282,23.45931047,147.15,147.08,32.34]
[1745867471482,55.79931047,147.15,147.08,32.34]
[1745867471679,55.79931047,147.15,147.04,398.2954]
[1745867471680,6.7954,147.13,147.04,398.2954]
[1745867471880,6.7954,147.13,147.04,38.2954]
[1745867472082,23.45931047,147.15,147.11,6.7958]
[1745867472381,32.34,147.14,147.11,6.7958]
[1745867472583,32.34,147.14,147.04,61.75471047]
[1745867473482,6.7955,147.12,147.04,38.2954]
[1745867473682,32.34,147.14,147.04,38.2954]
[1745867474186,39.1347,147.14,147.11,6.7957]
[1745867474485,39.1347,147.14,147.04,38.2954]
[1745867474784,39.1347,147.14,147.1,6.7962]
[1745867474984,39.1347,147.14,147.04,38.2954]
[1745867475784,39.1347,147.14,147.1,6.796]
[1745867476389,6.795,147.13,147.1,6.796]
[1745867476685,32.34,147.14,147.1,6.796]
[1745867476984,32.34,147.14,147.09,6.7966]
[1745867477585,6.795,147.13,147.1,6.7963]
[1745867477781,6.795,147.13,147.04,38.2954]
[1745867478586,30.25491047,147.12,147.04,38.2954]
[1745867478782,23.45931047,147.12,147.04,38.2954]
[1745867479189,23.45931047,147.12,147.08,6.797]
[1745867479688,6.7962,147.11,147.07,6.7975]
[1745867479984,23.45931047,147.12,147.04,38.2954]
[1745867480190,23.45931047,147.12,147.09,6.7966]
[1745867480789,10.9373,147.13,147.1,6.7961]
[1745867480987,10.9373,147.13,147.04,38.2954]
[1745867481588,6.7957,147.12,147.04,38.2954]
[1745867482088,10.9374,147.13,147.04,38.2954]
[1745867482286,4.1421,147.13,147.04,38.2954]
[1745867482586,4.1421,147.13,147.08,6.797]
[1745867482889,4.1421,147.13,147.04,38.2954]
[1745867483089,4.1421,147.13,147.09,6.7964]
[1745867483389,10.9373,147.13,147.09,6.7964]
[1745867483990,4.1421,147.13,147.1,6.7963]
[1745867484185,62.59391047,147.14,147.1,6.7963]
[1745867484690,6.795,147.13,147.09,6.7966]
[1745867487196,6.7956,147.12,147.09,6.7966]
[1745867487601,21.45639491,147.12,147.09,6.7966]
[1745867488098,14.66079491,147.12,147.09,6.7966]
[1745867489600,21.45629491,147.12,147.09,6.7966]
[1745867490200,14.66079491,147.12,147.09,6.7966]
[1745867491599,14.66079491,147.12,147.1,6.7963]
[1745867492306,14.66079491,147.14,147.05,14.66079491]
[1745867493597,14.66079491,147.12,147.04,51.8931]
[1745867493801,14.66079491,147.12,147.04,66.55389491]
[1745867494101,14.66079491,147.14,147.04,66.55389491]
[1745867494700,6.7945,147.15,147.04,51.8931]
[1745867494894,4.2282,147.18,147.1,14.66079491]
[1745867495096,4.2282,147.18,147.1,46.98079491]
[1745867495298,2.0922,147.18,147.1,46.98079491]
[1745867495703,2.0922,147.18,147.15,6.794]
[1745867496502,2.0922,147.18,147.16,6.7935]
[1745867498105,2.0922,147.18,147.15,6.7939]
[1745867500106,16.75299491,147.18,147.15,6.7939]
[1745867500303,14.66079491,147.16,147.1,32.32]
[1745867501403,21.45449491,147.16,147.12,6.7951]
[1745867501904,14.66079491,147.16,147.06,46.98079491]
[1745867502612,14.66079491,147.16,147.12,6.795]
[1745867503113,21.45439491,147.16,147.12,6.795]
[1745867503410,14.66079491,147.16,147.06,46.98079491]
[1745867503611,21.45459491,147.16,147.06,46.98079491]
[1745867504611,6.7941,147.15,147.06,46.98079491]
[1745867505013,21.45459491,147.16,147.12,6.7954]
[1745867505515,14.66079491,147.16,147.12,6.7954]
[1745867505813,34.3575,147.17,147.12,6.7954]
[1745867506014,4.1729,147.18,147.1,46.98079491]
[1745867506412,2.0807,147.18,147.1,46.98079491]
[1745867506611,2.0807,147.18,147.16,6.7933]
[1745867508418,2.0807,147.18,147.17,6.7931]
[1745867508610,14.66079491,147.2,147.1,46.98079491]
[1745867508815,14.66079491,147.2,147.12,14.66079491]
[1745867509011,32.32,147.21,147.12,14.66079491]
[1745867509214,39.1116,147.21,147.12,14.66079491]
[1745867509712,32.32,147.21,147.14,14.66079491]
[1745867510618,48.91569491,147.23,147.14,14.66079491]
[1745867511010,34.2549,147.23,147.14,46.96079491]
[1745867512013,1.9549,147.23,147.14,46.96079491]
[1745867512911,1.9549,147.23,147.2,6.7916]
[1745867514915,8.7453,147.23,147.19,6.792]
[1745867515617,23.49349491,147.24,147.2,6.7917]
[1745867515819,16.70339491,147.24,147.16,14.66079491]
[1745867516317,23.49349491,147.24,147.2,6.7917]
[1745867516815,23.49349491,147.24,147.16,14.66079491]
[1745867517217,16.70339491,147.24,147.14,46.96079491]
[1745867517616,16.70339491,147.24,147.18,6.7924]
[1745867517917,16.70339491,147.24,147.14,46.96079491]
[1745867518512,16.70339491,147.24,147.17,6.7929]
[1745867518709,14.66079491,147.22,147.14,46.96079491]
[1745867518915,21.45179491,147.22,147.14,46.96079491]
[1745867519118,21.45179491,147.22,147.18,6.7923]
[1745867519520,21.45179491,147.22,147.14,46.96079491]
[1745867520121,6.7914,147.21,147.14,46.96079491]
[1745867520317,14.66079491,147.22,147.14,46.96079491]
[1745867521112,16.70339491,147.24,147.14,46.96079491]
[1745867521319,49.00339491,147.24,147.14,46.96079491]
[1745867521519,49.00339491,147.24,147.16,14.66079491]
[1745867522326,2.0426,147.24,147.16,14.66079491]
[1745867522519,2.0426,147.24,147.22,6.7907]
[1745867523216,2.0426,147.24,147.21,6.7911]
[1745867523922,2.0426,147.24,147.22,6.7908]
[1745867525022,2.0918,147.25,147.22,6.7908]
[1745867525927,1.9768,147.27,147.19,32.26]
[1745867526225,14.66079491,147.26,147.19,32.26]
[1745867526418,6.7895,147.25,147.21,6.7909]
[1745867526619,14.66079491,147.26,147.19,32.26]
[1745867527015,21.44999491,147.26,147.22,6.7906]
[1745867527719,21.44999491,147.26,147.23,6.7903]
[1745867528125,1.9768,147.27,147.25,6.789]
[1745867528323,1.9768,147.27,147.19,32.26]
[1745867528624,14.66079491,147.28,147.26,6.7887]
[1745867529021,14.66079491,147.28,147.2,14.66079491]
[1745867529424,14.66079491,147.28,147.25,6.7892]
[1745867529928,14.66079491,147.28,147.26,6.7889]
[1745867530132,14.66079491,147.28,147.2,14.66079491]
[1745867530632,14.66079491,147.28,147.25,6.789]
[1745867532131,21.44889491,147.28,147.25,6.789]
[1745867532332,14.66079491,147.28,147.19,32.26]
[1745867532534,14.66079491,147.24,147.19,32.26]
[1745867532736,14.66079491,147.24,147.21,6.7913]
[1745867533032,2.0764,147.27,147.19,32.26]
[1745867533233,23.52589491,147.27,147.19,32.26]
[1745867533434,23.52589491,147.27,147.23,6.7901]
[1745867533634,16.73719491,147.27,147.23,6.7901]
[1745867533833,6.789,147.26,147.23,6.7901]
[1745867534234,6.789,147.26,147.22,6.7906]
[1745867534633,6.7895,147.25,147.22,6.7906]
[1745867534927,14.66079491,147.23,147.16,3.9889]
[1745867535132,14.66079491,147.23,147.15,46.92079491]
[1745867535333,14.66079491,147.23,147.19,6.7919]
[1745867536627,21.45129491,147.23,147.19,6.7919]
[1745867537536,14.66079491,147.23,147.18,6.7926]
[1745867537735,14.66079491,147.21,147.15,32.26]
[1745867538337,21.45219491,147.21,147.15,32.26]
[1745867538838,6.7921,147.2,147.16,6.7932]
[1745867539134,14.66079491,147.21,147.16,6.7932]
[1745867539338,14.66079491,147.21,147.17,6.7931]
[1745867539934,21.45239491,147.21,147.17,6.7931]
[1745867540340,32.26,147.22,147.15,46.92079491]
[1745867540735,32.26,147.22,147.18,6.7924]
[1745867541039,39.051,147.22,147.18,6.7924]
[1745867542839,6.7914,147.21,147.18,6.7924]
[1745867543040,46.92079491,147.22,147.17,6.793]
[1745867543542,6.7918,147.2,147.17,6.793]
[1745867544443,6.7924,147.19,147.13,14.66079491]
[1745867544833,6.7924,147.19,147.16,6.7933]
[1745867546043,6.792,147.2,147.16,6.7933]
[1745867546741,6.7922,147.19,147.16,6.7933]
[1745867548648,6.793,147.18,147.15,6.7938]
[1745867548841,16.66199491,147.2,147.11,46.92079491]
[1745867549246,6.7929,147.18,147.11,46.92079491]
[1745867550045,6.7924,147.19,147.11,46.92079491]
[1745867550545,6.7924,147.19,147.15,6.7938]
[1745867551246,6.7935,147.17,147.13,6.7947]
[1745867551645,6.7935,147.17,147.14,6.7945]
[1745867552245,46.92079491,147.18,147.11,32.26]
[1745867552748,6.7938,147.16,147.13,6.7947]
[1745867553247,6.794,147.15,147.13,6.7947]
[1745867553447,46.92079491,147.18,147.13,6.7947]
[1745867554046,14.66079491,147.16,147.13,6.7947]
[1745867554446,14.66079491,147.16,147.12,6.7952]
[1745867554746,14.66079491,147.16,147.08,6.0687]
[1745867555246,6.7944,147.15,147.08,6.0687]
[1745867555746,14.66079491,147.16,147.1,6.7961]
[1745867556247,14.66079491,147.16,147.07,46.86079491]
[1745867556445,2.0525,147.17,147.09,14.66079491]
[1745867556845,32.2,147.18,147.11,14.66079491]
[1745867557441,32.2,147.18,147.13,14.66079491]
[1745867558348,38.9927,147.18,147.14,6.7943]
[1745867558544,32.2,147.18,147.13,14.66079491]
[1745867558949,32.2,147.18,147.16,6.7936]
[1745867559347,2.0012,147.2,147.16,6.7936]
[1745867559548,8.7933,147.2,147.16,6.7936]
[1745867559744,2.0012,147.2,147.16,6.7936]
[1745867559949,2.0012,147.2,147.15,6.7938]
[1745867560150,6.7925,147.19,147.15,6.7938]
[1745867560542,6.7929,147.18,147.14,6.7943]
[1745867561049,6.7923,147.19,147.15,6.7938]
[1745867561247,2.0012,147.2,147.13,14.66079491]
[1745867561942,16.66199491,147.2,147.15,6.7937]
[1745867562149,16.66199491,147.2,147.11,46.86079491]
[1745867562645,6.7936,147.17,147.11,46.86079491]
[1745867562842,14.66079491,147.18,147.11,32.2]
[1745867563050,46.86079491,147.18,147.11,32.2]
[1745867563242,6.7933,147.17,147.14,6.7944]
[1745867565255,6.7937,147.16,147.14,6.7944]
[1745867566756,6.7943,147.15,147.12,6.7951]
[1745867567051,46.86079491,147.18,147.11,32.2]
[1745867567252,6.7939,147.16,147.13,6.7946]
[1745867567453,6.7939,147.16,147.11,32.2]
[1745867567752,6.7939,147.16,147.13,6.7945]
[1745867571156,6.794,147.15,147.13,6.7945]
[1745867571356,6.794,147.15,147.12,6.7952]
[1745867571560,14.66079491,147.16,147.11,32.2]
[1745867571854,14.66079491,147.14,147.08,1.9996]
[1745867572054,21.45549491,147.14,147.11,6.7959]
[1745867574655,14.66079491,147.14,147.12,6.7953]
[1745867574855,14.66079491,147.16,147.08,1.9996]
[1745867575153,21.45459491,147.16,147.12,6.7952]
[1745867575357,14.66079491,147.16,147.12,6.7952]
[1745867575960,14.66079491,147.16,147.08,1.9996]
[1745867576459,21.45459491,147.16,147.08,1.9996]
[1745867576959,21.45459491,147.16,147.12,6.7951]
[1745867577261,14.66079491,147.14,147.07,32.22]
[1745867577759,6.795,147.13,147.09,6.7968]
[1745867577956,6.795,147.13,147.07,32.22]
[1745867578362,6.795,147.13,147.1,6.7963]
[1745867579763,6.7954,147.12,147.1,6.7963]
[1745867580061,14.66079491,147.12,147.07,32.22]
[1745867580362,6.7961,147.11,147.03,48.94209491]
[1745867580561,14.66079491,147.12,147.03,48.94209491]
[1745867580962,46.88079491,147.14,147.05,14.66079491]
[1745867581562,6.795,147.13,147.05,14.66079491]
[1745867582163,14.66079491,147.12,147.05,14.66079491]
[1745867582365,14.66079491,147.12,147.03,48.94209491]
[1745867582661,14.66079491,147.12,147.03,34.2813]
[1745867582866,6.7961,147.11,147.07,6.7973]
[1745867583062,14.66079491,147.12,147.07,6.7973]
[1745867583257,6.7961,147.11,147.07,6.7973]
[1745867583461,14.66079491,147.12,147.07,6.7973]
[1745867583662,14.66079491,147.1,147.03,34.2813]
[1745867584167,14.66079491,147.1,147.05,6.7984]
[1745867584466,6.797,147.09,147.03,34.2813]
[1745867584766,14.66079491,147.1,147.06,6.7978]
[1745867585070,14.66079491,147.1,147.03,34.2813]
[1745867585272,14.66079491,147.1,147.06,6.7979]
[1745867585869,21.45739491,147.1,147.07,6.7977]
[1745867586069,14.66079491,147.12,147.03,48.94209491]
[1745867587170,14.66079491,147.12,147.09,6.7964]
[1745867588471,18.82819491,147.15,147.07,14.66079491]
[1745867588769,18.82819491,147.15,147.03,34.2813]
[1745867588971,18.82819491,147.15,147.06,14.66079491]
[1745867589269,25.62249491,147.15,147.11,6.7958]
[1745867589570,18.82819491,147.15,147.06,14.66079491]
[1745867589872,6.7946,147.14,147.1,6.7961]
[1745867591271,6.7946,147.14,147.11,6.7957]
[1745867591773,6.7946,147.14,147.1,6.796]
[1745867592372,6.795,147.13,147.1,6.796]
[1745867592671,18.82819491,147.15,147.09,6.7967]
[1745867592871,6.7952,147.13,147.06,14.66079491]
[1745867593065,6.7952,147.13,147.1,6.7961]
[1745867593473,6.7947,147.14,147.1,6.7961]
[1745867594074,6.7947,147.14,147.11,6.7958]
[1745867594871,6.795,147.13,147.11,6.7958]
[1745867595276,6.7946,147.14,147.11,6.7958]
[1745867597179,25.62239491,147.15,147.07,32.16]
[1745867597478,32.16,147.16,147.08,14.66079491]
[1745867597781,38.954,147.16,147.12,6.7952]
[1745867599579,14.66079491,147.15,147.1,6.7959]
[1745867601179,6.7953,147.13,147.1,6.7959]
[1745867601681,6.7953,147.13,147.11,6.7958]
[1745867603083,6.7953,147.13,147.1,6.7962]
[1745867603483,6.7959,147.11,147.07,34.2527]
[1745867603677,6.7959,147.11,147.08,6.797]
[1745867603982,14.66079491,147.13,147.08,6.797]
[1745867604184,6.7961,147.11,147.09,6.7967]
[1745867604481,14.66079491,147.13,147.09,6.7967]
[1745867605378,6.7957,147.12,147.09,6.7967]
[1745867606681,18.84639491,147.15,147.07,32.16]
[1745867607685,18.84639491,147.15,147.11,6.7956]
[1745867608383,6.7946,147.14,147.11,6.7956]
[1745867609681,6.7952,147.13,147.1,6.7961]
[1745867609886,18.84639491,147.15,147.07,32.16]
[1745867610187,18.84639491,147.15,147.1,6.7962]
[1745867610986,6.7947,147.14,147.1,6.7962]
[1745867611188,18.84639491,147.15,147.1,6.7962]
[1745867611688,6.795,147.13,147.1,6.7962]
[1745867613986,25.64079491,147.15,147.1,6.7962]
[1745867614591,25.64079491,147.15,147.11,6.7957]
[1745867614891,6.7946,147.14,147.11,6.7957]
[1745867615588,18.84639491,147.15,147.11,6.7957]
[1745867615789,46.82079491,147.16,147.08,14.66079491]
[1745867615980,503.78079491,147.21,147.07,32.16]
[1745867615981,50.70899491,147.2,147.1,14.66079491]
[1745867616183,50.70899491,147.2,147.12,14.66079491]
[1745867616584,36.0482,147.2,147.14,14.66079491]
[1745867616787,34.1192,147.2,147.14,14.66079491]
[1745867617491,34.1192,147.2,147.17,6.7927]
[1745867618987,32.08,147.2,147.14,14.66079491]
[1745867619188,2.0776,147.22,147.14,14.66079491]
[1745867620291,2.0776,147.22,147.19,6.7919]
[1745867621093,2.0776,147.22,147.14,14.66079491]
[1745867621992,2.0776,147.22,147.19,6.7919]
[1745867622192,2.0776,147.22,147.14,14.66079491]
[1745867622595,2.0776,147.22,147.2,6.7915]
[1745867623993,2.0776,147.22,147.19,6.7921]
[1745867624192,8.8684,147.22,147.19,6.7921]
[1745867625294,6.7913,147.21,147.18,6.7926]
[1745867626194,8.8686,147.22,147.18,6.7926]
[1745867626394,8.8686,147.22,147.19,6.7922]
[1745867626795,2.0776,147.22,147.19,6.7922]
[1745867627593,2.0776,147.22,147.15,32.06]
[1745867627594,32.06,147.24,147.16,14.66079491]
[1745867628496,32.06,147.24,147.21,6.7909]
[1745867630593,46.72079491,147.24,147.2,6.7915]
[1745867630801,14.66079491,147.22,147.15,32.06]
[1745867630995,14.66079491,147.2,147.15,32.06]
[1745867631195,21.45259491,147.2,147.17,6.793]
[1745867631795,14.66079491,147.2,147.17,6.793]
[1745867632100,14.66079491,147.2,147.18,6.7926]
[1745867632499,14.66079491,147.22,147.15,32.06]
[1745867633100,6.7913,147.21,147.15,32.06]
[1745867633397,14.66079491,147.22,147.15,32.06]
[1745867634101,21.45169491,147.22,147.15,32.06]
[1745867634299,21.45169491,147.22,147.18,6.7924]
[1745867634696,6.7914,147.21,147.18,6.7924]
[1745867635700,21.45179491,147.22,147.18,6.7924]
[1745867636100,21.45179491,147.22,147.19,6.7921]
[1745867636599,21.45179491,147.22,147.18,6.7924]
[1745867636899,21.45179491,147.22,147.15,32.06]
[1745867637400,14.66079491,147.22,147.15,32.06]
[1745867638000,14.66079491,147.22,147.19,6.7919]
[1745867638495,21.45169491,147.22,147.18,6.7925]
[1745867639600,6.7914,147.21,147.18,6.7925]
[1745867639899,14.66079491,147.22,147.18,6.7925]
[1745867640096,21.45179491,147.22,147.19,6.7922]
[1745867640701,14.66079491,147.22,147.2,6.7917]
[1745867641101,14.66079491,147.22,147.15,32.06]
[1745867641401,16.66019491,147.22,147.15,32.06]
[1745867641801,23.45139491,147.22,147.19,6.7921]
[1745867642701,6.7913,147.21,147.18,6.7925]
[1745867642999,6.7913,147.21,147.15,32.06]
[1745867643302,6.7913,147.21,147.18,6.7923]
[1745867643499,23.45139491,147.22,147.14,14.66079491]
[1745867644000,6.7917,147.21,147.14,14.66079491]
[1745867644200,16.66019491,147.22,147.14,14.66079491]
[1745867644902,33.909,147.26,147.16,14.66079491]
[1745867645103,50.56909491,147.26,147.16,14.66079491]
[1745867645401,6.7902,147.24,147.2,6.7913]
[1745867645701,50.56909491,147.26,147.16,14.66079491]
[1745867645903,6.7896,147.25,147.21,6.791]
[1745867646503,6.79,147.24,147.21,6.791]
[1745867646704,21.45079491,147.24,147.21,6.791]
[1745867647206,14.66079491,147.24,147.21,6.791]
[1745867647898,21.45069491,147.24,147.21,6.791]
[1745867649110,21.45069491,147.24,147.22,6.7908]
[1745867649502,14.66079491,147.24,147.16,14.66079491]
[1745867649703,14.66079491,147.22,147.15,31.98]
[1745867650004,46.64079491,147.22,147.15,31.98]
[1745867650304,6.7913,147.21,147.15,31.98]
[1745867650605,6.7913,147.21,147.18,6.7923]
[1745867650907,53.43169491,147.22,147.15,31.98]
[1745867651106,31.98,147.22,147.15,31.98]
[1745867651808,31.98,147.22,147.2,6.7914]
[1745867652005,31.98,147.22,147.15,31.98]
[1745867652407,31.98,147.22,147.2,6.7917]
[1745867652608,31.98,147.22,147.16,14.66079491]
[1745867653009,31.98,147.22,147.15,31.98]
[1745867653812,31.98,147.22,147.19,6.7919]
[1745867656013,38.7709,147.22,147.19,6.7919]
[1745867656214,46.64079491,147.22,147.14,14.66079491]
[1745867656513,6.7916,147.21,147.14,14.66079491]
[1745867656713,6.7916,147.21,147.17,6.793]